bitfinex-derivatives/quotes_BTCF0:USTF0_20210706
["timestamp","ask_amount","ask_price","bid_price","bid_amount"]
[1625580921597,0.48115088,34044.0,34039.0,0.2929]
[1625580921957,0.48115088,34044.0,34036.0,0.24057544]
[1625580922558,0.48115088,34044.0,34037.0,0.56452]
[1625580923102,0.48115088,34044.0,34037.0,1.76436878]
[1625580923341,0.48115088,34044.0,34037.0,0.56452]
[1625580923461,0.24057544,34038.0,34037.0,0.56452]
[1625580923585,0.24057544,34038.0,34037.0,1.76437439]
[1625580923824,0.24057544,34038.0,34037.0,0.56452]
[1625580924184,0.24057544,34038.0,34037.0,1.76439868]
[1625580924364,0.24057544,34038.0,34037.0,0.56452]
[1625580924485,0.48115088,34044.0,34037.0,0.56452]
[1625580924605,0.24057544,34044.0,34037.0,1.7641073]
[1625580924844,0.24057544,34044.0,34040.0,1.19987434]
[1625580925084,0.24057544,34044.0,34041.0,1.19984344]
[1625580925323,0.24057544,34044.0,34042.0,1.19982247]
[1625580925444,0.24057544,34044.0,34043.0,0.48115088]
[1625580926465,0.24057544,34044.0,34043.0,5.56585088]
[1625580928506,0.24057544,34044.0,34043.0,5.56974194]
[1625580929108,0.24057544,34048.0,34043.0,5.56974194]
[1625580929475,0.24057544,34048.0,34047.0,0.24057544]
[1625580935062,0.24057544,34048.0,34047.0,0.24446043]
[1625580939753,0.53694544,34048.0,34047.0,0.00388499]
[1625580940232,0.53694544,34048.0,34044.0,0.00388538]
[1625580940471,0.53694544,34048.0,34043.0,0.48115088]
[1625580940713,0.53694544,34048.0,34044.0,0.00388538]
[1625580941617,0.24057544,34045.0,34044.0,0.00388538]
[1625580947203,0.24057544,34045.0,34044.0,1.0345102]
[1625580947804,0.24057544,34054.0,34044.0,1.0345102]
[1625580948045,0.24057544,34054.0,34044.0,1.3330102]
[1625580948165,1.93863118,34063.0,34044.0,1.3330102]
[1625580948287,1.93863118,34063.0,34046.0,1.03057996]
[1625580948289,0.9491,34063.0,34046.0,1.03057996]
[1625580948404,0.989734,34064.0,34047.0,0.0874]
[1625580948651,1.15466218,34066.0,34047.0,0.0874]
[1625580948659,1.15466218,34066.0,34049.0,1.03073528]
[1625580948660,0.01515238,34057.0,34049.0,1.03073528]
[1625580948770,0.01515238,34057.0,34050.0,0.5]
[1625580948884,1.15502521,34068.0,34050.0,0.5]
[1625580948887,1.15502521,34068.0,34051.0,1.0310953]
[1625580948889,0.01516174,34063.0,34051.0,1.0310953]
[1625580949006,0.01516174,34063.0,34052.0,0.5]
[1625580949126,0.99200597,34072.0,34055.0,1.03096138]
[1625580949244,0.99200597,34072.0,34056.0,0.0888]
[1625580949367,0.01515976,34071.0,34056.0,1.1236151]
[1625580949605,0.01515976,34071.0,34070.0,0.48115088]
[1625580949725,0.25572929,34072.0,34070.0,4.50035088]
[1625580949847,0.25572929,34072.0,34070.0,4.79429088]
[1625580949966,0.01515341,34071.0,34070.0,4.79429088]
[1625580950087,0.01515341,34071.0,34070.0,0.77509088]
[1625580951529,0.24057544,34072.0,34070.0,0.77509088]
[1625580956337,0.24057544,34072.0,34070.0,0.84799088]
[1625580958518,0.99807054,34075.0,34070.0,0.84799088]
[1625580958744,0.24057544,34076.0,34070.0,0.84799088]
[1625580958988,0.99920696,34077.0,34070.0,0.84799088]
[1625580958989,0.99920696,34077.0,34071.0,0.0872]
[1625580959226,1.1657137,34079.0,34071.0,0.0872]
[1625580959231,1.00070064,34079.0,34071.0,0.0872]
[1625580959466,1.16745629,34081.0,34071.0,0.0872]
[1625580959583,0.97645629,34081.0,34071.0,0.0872]
[1625580959702,1.57478738,34083.0,34080.0,5.09875088]
[1625580959703,0.24057544,34083.0,34080.0,5.09875088]
[1625580959820,0.24057544,34083.0,34080.0,5.34059088]
[1625580965770,0.66870076,34086.0,34080.0,5.34059088]
[1625580965896,1.17117544,34088.0,34080.0,5.34059088]
[1625580965898,0.46580716,34087.0,34080.0,5.34059088]
[1625580966131,0.24057544,34091.0,34080.0,5.34059088]
[1625580966733,1.33835952,34094.0,34080.0,5.34059088]
[1625580966854,1.33907837,34095.0,34081.0,0.5]
[1625580967092,1.33853498,34098.0,34081.0,1.5]
[1625580967331,1.33853498,34098.0,34085.0,1.0]
[1625580967455,1.33980159,34102.0,34085.0,1.5]
[1625580967692,1.33980159,34102.0,34099.0,4.3094]
[1625580967811,1.33980159,34102.0,34101.0,0.72172632]
[1625580967931,0.9646,34104.0,34101.0,0.72172632]
[1625580967932,2.30522373,34104.0,34101.0,0.72172632]
[1625580968053,1.34062373,34104.0,34101.0,0.72172632]
[1625580968174,1.34079848,34105.0,34101.0,0.72172632]
[1625580968413,1.74875619,34108.0,34101.0,0.72172632]
[1625580968414,1.34107162,34106.0,34101.0,0.72172632]
[1625580969021,1.34119297,34107.0,34101.0,0.72172632]
[1625580969259,0.24057544,34108.0,34101.0,0.72172632]
[1625580969560,1.57915727,34108.0,34101.0,0.72172632]
[1625580969741,1.33803822,34107.0,34101.0,0.72172632]
[1625580969864,1.33803822,34107.0,34106.0,0.24057544]
[1625580969983,1.33803822,34107.0,34106.0,0.55324544]
[1625580971003,0.24057544,34108.0,34106.0,0.55324544]
[1625580971004,1.57681134,34108.0,34106.0,0.55324544]
[1625580971965,0.24057544,34108.0,34107.0,0.24057544]
[1625580977496,0.51057544,34108.0,34107.0,0.24057544]
[1625580980263,1.67495061,34108.0,34107.0,0.24057544]
[1625580981164,0.51057544,34108.0,34107.0,0.24057544]
[1625580984766,0.24057544,34108.0,34107.0,0.24057544]
[1625580987778,0.24057544,34112.0,34107.0,0.24057544]
[1625580988134,0.24057544,34112.0,34111.0,0.24057544]
[1625580988676,0.25570028,34112.0,34111.0,0.24057544]
[1625580994211,0.60335028,34112.0,34111.0,0.24057544]
[1625580994689,0.63803491,34112.0,34111.0,0.24057544]
[1625580995290,1.63912074,34112.0,34111.0,0.24057544]
[1625580995532,2.1397741,34112.0,34108.0,0.24057544]
[1625580995772,0.50063503,34110.0,34108.0,0.24057544]
[1625580995953,1.63912074,34112.0,34108.0,0.24057544]
[1625580995954,0.5005311,34109.0,34108.0,0.24057544]
[1625580996193,0.74110654,34109.0,34108.0,0.24057544]
[1625580996315,0.79094482,34109.0,34108.0,0.24057544]
[1625580996433,1.79196401,34109.0,34108.0,0.24057544]
[1625580997274,1.79196401,34109.0,34101.0,0.24057544]
[1625580997393,2.9616463,34109.0,34101.0,0.24057544]
[1625580997634,0.50165198,34106.0,34101.0,0.24057544]
[1625580997877,1.0529772,34108.0,34101.0,0.24057544]
[1625580997878,0.55185732,34108.0,34101.0,0.24057544]
[1625580997997,0.0151508,34105.0,34101.0,0.24057544]
[1625580998116,0.48115088,34102.0,34101.0,0.24057544]
[1625580998238,0.80707088,34102.0,34101.0,0.24057544]
[1625580998657,0.82222205,34102.0,34101.0,0.24057544]
[1625581001786,0.49630205,34102.0,34101.0,0.24057544]
[1625581003110,0.48115088,34102.0,34101.0,0.24057544]
[1625581003231,0.49630141,34102.0,34101.0,0.24057544]
[1625581003592,4.36400141,34102.0,34101.0,0.24057544]
[1625581003714,4.62484141,34102.0,34101.0,0.24057544]
[1625581005093,5.12936924,34102.0,34101.0,0.24057544]
[1625581005332,6.13796414,34102.0,34101.0,0.24057544]
[1625581005452,6.13796414,34102.0,34098.0,0.24057544]
[1625581005698,7.31424789,34102.0,34098.0,0.24057544]
[1625581005817,0.01515183,34101.0,34098.0,0.24057544]
[1625581005938,0.50422808,34099.0,34098.0,0.24057544]
[1625581006421,2.69124049,34099.0,34098.0,0.24057544]
[1625581006542,2.74108666,34099.0,34098.0,0.24057544]
[1625581006666,4.08633134,34099.0,34098.0,0.24057544]
[1625581009180,4.05163786,34099.0,34098.0,0.24057544]
[1625581012428,5.57152322,34099.0,34098.0,0.24057544]
[1625581013090,4.05163786,34099.0,34098.0,0.24057544]
[1625581014470,5.57115117,34099.0,34098.0,0.24057544]
[1625581015430,4.05163786,34099.0,34098.0,0.24057544]
[1625581018979,4.05163786,34099.0,34098.0,0.38637544]
[1625581020239,4.32929786,34099.0,34098.0,0.38637544]
[1625581020478,5.85273048,34099.0,34098.0,0.38637544]
[1625581022162,5.85273048,34099.0,34098.0,0.1458]
[1625581022405,5.85273048,34099.0,34090.0,0.08631927]
[1625581022406,6.09330592,34099.0,34090.0,0.08631927]
[1625581022529,6.09330592,34099.0,34089.0,0.29757544]
[1625581022530,6.09330592,34099.0,34089.0,0.24057544]
[1625581022532,7.81791176,34099.0,34089.0,0.24057544]
[1625581022761,4.05400262,34090.0,34085.0,0.32690651]
[1625581022879,4.37514262,34090.0,34085.0,0.32690651]
[1625581023001,2.70192585,34086.0,34085.0,0.24057544]
[1625581023119,2.70192585,34086.0,34084.0,0.08633413]
[1625581023241,4.05272096,34086.0,34083.0,0.08638623]
[1625581023359,4.06786818,34086.0,34083.0,0.08638623]
[1625581023480,4.06786818,34086.0,34080.0,0.0863912]
[1625581023481,4.05008736,34084.0,34080.0,0.0863912]
[1625581023841,3.593,34080.0,34079.0,0.08639493]
[1625581023961,3.593,34080.0,34076.0,1.0367392]
[1625581023964,3.593,34080.0,34077.0,0.08640071]
[1625581023966,7.63873913,34080.0,34077.0,0.08640071]
[1625581024203,7.65388805,34080.0,34077.0,0.08640071]
[1625581024382,4.76567769,34078.0,34076.0,0.0864048]
[1625581024742,2.70802313,34077.0,34074.0,0.08632507]
[1625581024982,2.69296756,34075.0,34073.0,0.08636138]
[1625581025224,2.93589309,34074.0,34072.0,0.08636408]
[1625581025462,1.51443051,34073.0,34072.0,0.08636408]
[1625581025941,2.6919699,34073.0,34071.0,0.0863634]
[1625581026123,2.18703156,34072.0,34071.0,0.0863634]
[1625581026366,1.65884795,34072.0,34070.0,0.08626842]
[1625581026604,0.50416883,34071.0,34070.0,0.08626842]
[1625581027510,1.17626788,34071.0,34070.0,0.08626842]
[1625581027755,1.17626788,34071.0,34070.0,0.3450488]
[1625581027756,0.33624039,34071.0,34070.0,0.3450488]
[1625581028103,0.08420193,34071.0,34070.0,0.51757615]
[1625581028343,0.90159144,34072.0,34070.0,0.43098234]
[1625581028522,0.56528792,34072.0,34071.0,0.08619559]
[1625581029003,0.56528792,34072.0,34070.0,0.43098226]
[1625581029125,0.82907792,34072.0,34070.0,0.43098226]
[1625581029426,1.16513296,34072.0,34070.0,0.08619639]
[1625581030089,1.16513296,34072.0,34070.0,0.43095356]
[1625581030090,0.82907792,34072.0,34070.0,0.43095356]
[1625581030569,0.82907792,34072.0,34070.0,0.08619639]
[1625581030929,0.82907792,34072.0,34069.0,0.43070241]
[1625581031113,1.16481921,34072.0,34069.0,0.08614016]
[1625581031592,1.16481921,34072.0,34068.0,0.67123938]
[1625581031832,0.08403921,34071.0,34068.0,0.32670799]
[1625581032071,0.4197875,34071.0,34068.0,0.32670799]
[1625581032313,1.16468838,34072.0,34068.0,0.24057544]
[1625581032434,0.24057544,34070.0,34068.0,0.24057544]
[1625581032794,0.24057544,34070.0,34068.0,0.32665763]
[1625581033034,0.24057544,34070.0,34068.0,0.24057544]
[1625581033276,0.24057544,34070.0,34068.0,0.32665238]
[1625581034300,0.24057544,34070.0,34068.0,0.24057544]
[1625581038202,4.52937544,34070.0,34068.0,0.24057544]
[1625581040852,4.52937544,34070.0,34064.0,0.08595978]
[1625581041209,4.52937544,34070.0,34062.0,1.49638973]
[1625581041211,4.52937544,34070.0,34062.0,0.72249635]
[1625581041805,4.52937544,34070.0,34062.0,0.2929]
[1625581041931,4.52937544,34070.0,34061.0,0.24057544]
[1625581042109,0.41940069,34069.0,34061.0,0.24057544]
[1625581042466,0.24057544,34062.0,34061.0,0.24057544]
[1625581042586,0.59057544,34062.0,34061.0,0.24057544]
[1625581046437,0.59057544,34062.0,34056.0,0.32642682]
[1625581046557,0.59057544,34062.0,34056.0,0.24057544]
[1625581048361,3.6111,34057.0,34056.0,0.24057544]
[1625581048481,3.85167544,34057.0,34056.0,0.24057544]
[1625581063272,0.24057544,34057.0,34056.0,0.24057544]
[1625581066944,0.24057544,34057.0,34056.0,0.24445663]
[1625581071698,0.49099544,34057.0,34056.0,0.24445663]
[1625581072346,0.50616447,34057.0,34056.0,0.24445663]
[1625581072955,0.50616447,34057.0,34056.0,0.24057544]
[1625581073190,0.50616447,34057.0,34056.0,0.24445622]
[1625581074269,0.50616447,34057.0,34056.0,0.00388078]
[1625581074510,0.50616447,34057.0,34053.0,0.00388094]
[1625581074632,0.75730084,34057.0,34053.0,0.00388094]
[1625581074750,0.24057544,34054.0,34053.0,0.00388094]
[1625581075113,0.25574616,34054.0,34051.0,0.00388114]
[1625581075351,0.25574616,34054.0,34048.0,0.60204763]
[1625581075352,0.25574616,34054.0,34053.0,0.00388112]
[1625581075592,0.25574616,34054.0,34049.0,0.00388112]
[1625581075951,0.01517081,34053.0,34049.0,0.00388112]
[1625581076072,0.01517081,34053.0,34049.0,0.08993887]
[1625581076191,4.8088,34050.0,34049.0,0.08993887]
[1625581076311,5.02349,34050.0,34049.0,0.00388112]
[1625581076431,5.02349,34050.0,34048.0,0.60208894]
[1625581076672,5.02349,34050.0,34049.0,0.00388115]
[1625581077033,5.02349,34050.0,34049.0,0.60680942]
[1625581077754,5.03866112,34050.0,34049.0,0.09001376]
[1625581078356,5.03866112,34050.0,34049.0,0.00388115]
[1625581078597,5.87473666,34050.0,34044.0,0.25837664]
[1625581078720,0.48115088,34045.0,34044.0,0.25837664]
[1625581078837,0.48115088,34045.0,34044.0,0.51746016]
[1625581079077,0.48115088,34045.0,34044.0,0.521342]
[1625581079317,0.48115088,34045.0,34044.0,1.21127678]
[1625581080279,0.48115088,34045.0,34044.0,0.52113101]
[1625581080821,0.48115088,34045.0,34044.0,0.26250744]
[1625581081061,0.48115088,34045.0,34044.0,0.60734251]
[1625581081482,0.48115088,34045.0,34043.0,0.51724918]
[1625581081483,0.48115088,34045.0,34043.0,0.60347566]
[1625581081721,0.48115088,34045.0,34043.0,0.08621081]
[1625581082203,0.56491693,34045.0,34043.0,0.08621081]
[1625581082682,1.06740326,34045.0,34044.0,0.25890459]
[1625581082923,0.73246817,34045.0,34044.0,0.08630153]
[1625581083285,0.48115088,34045.0,34037.0,0.24057544]
[1625581083523,0.7324297,34045.0,34044.0,0.08626241]
[1625581084006,0.983037,34045.0,34042.0,0.60386945]
[1625581084124,0.99822197,34045.0,34042.0,0.60386945]
[1625581084244,0.58579767,34044.0,34042.0,0.25880119]
[1625581084545,0.58579767,34044.0,34042.0,0.60387159]
[1625581084785,0.25117559,34044.0,34043.0,0.25885289]
[1625581084967,0.08378094,34044.0,34042.0,0.60380903]
[1625581085447,1.06701973,34045.0,34042.0,0.60380903]
[1625581085686,0.25086125,34044.0,34042.0,0.25873863]
[1625581086166,1.06663085,34045.0,34042.0,0.60372413]
[1625581086468,0.08362546,34044.0,34042.0,0.60372413]
[1625581086711,0.73183846,34045.0,34042.0,0.25873863]
[1625581086828,0.24057544,34043.0,34042.0,0.25873863]
[1625581086953,0.24057544,34043.0,34040.0,0.68996969]
[1625581086955,0.24057544,34043.0,34040.0,0.60359271]
[1625581086957,0.82928008,34043.0,34040.0,0.60359271]
[1625581087189,1.16281195,34043.0,34040.0,0.08622753]
[1625581087609,0.82928008,34043.0,34040.0,0.25868086]
[1625581087850,1.16277035,34043.0,34040.0,0.25868086]
[1625581088211,0.82928008,34043.0,34040.0,0.25868086]
[1625581088333,0.82928008,34043.0,34040.0,0.60365183]
[1625581088692,0.08333369,34041.0,34039.0,0.08624276]
[1625581088811,0.24057544,34040.0,34039.0,0.08624276]
[1625581088934,0.24057544,34040.0,34038.0,0.51745656]
[1625581088935,3.599,34039.0,34038.0,0.2586859]
[1625581089172,3.599,34039.0,34038.0,0.60345498]
[1625581089654,3.599,34039.0,34038.0,0.5172546]
[1625581090082,3.599,34039.0,34038.0,1.20665755]
[1625581090558,3.599,34039.0,34038.0,2.24113265]
[1625581090795,3.83957544,34039.0,34038.0,2.24113265]
[1625581092180,4.09644544,34039.0,34038.0,2.24113265]
[1625581093443,4.09644544,34039.0,34038.0,1.20665755]
[1625581094166,4.09644544,34039.0,34037.0,0.0861913]
[1625581094525,4.09644544,34039.0,34035.0,1.20667816]
[1625581094526,4.67769549,34039.0,34035.0,0.60351396]
[1625581094885,0.48115088,34036.0,34035.0,0.60351396]
[1625581095247,0.48115088,34036.0,34035.0,0.08621628]
[1625581095547,0.48115088,34036.0,34034.0,0.08617823]
[1625581095727,0.48115088,34036.0,34034.0,0.2585328]
[1625581095967,0.48115088,34036.0,34035.0,0.51703039]
[1625581096207,0.48115088,34036.0,34035.0,0.08617299]
[1625581096329,4.97965088,34036.0,34035.0,0.08617299]
[1625581096447,4.97965088,34036.0,34033.0,0.60340336]
[1625581096928,4.97965088,34036.0,34033.0,0.25860144]
[1625581097888,4.97965088,34036.0,34033.0,0.08620048]
[1625581098491,4.97965088,34036.0,34033.0,0.2585618]
[1625581098850,0.24057544,34034.0,34033.0,0.2585618]
[1625581099091,0.24057544,34034.0,34033.0,6.18e-05]
[1625581099330,0.24057544,34034.0,34030.0,1.03440575]
[1625581099331,0.24057544,34034.0,34030.0,0.86147433]
[1625581099692,0.24057544,34034.0,34030.0,0.34458973]
[1625581100174,0.24057544,34034.0,34030.0,0.86163186]
[1625581100533,0.24057544,34034.0,34030.0,0.34458973]
[1625581100774,0.24057544,34034.0,34029.0,0.86173143]
[1625581100895,0.48115088,34030.0,34029.0,0.86173143]
[1625581101015,0.48115088,34030.0,34029.0,0.34468997]
[1625581101794,0.48115088,34030.0,34029.0,0.86147272]
[1625581103899,0.48115088,34030.0,34029.0,0.51678275]
[1625581105583,0.48115088,34030.0,34029.0,1.20559062]
[1625581106783,0.48115088,34030.0,34029.0,1.42743062]
[1625581106905,0.48115088,34030.0,34029.0,1.43132584]
[1625581107024,0.48115088,34030.0,34029.0,2.46439759]
[1625581108227,0.48115088,34030.0,34029.0,3.66961463]
[1625581108650,0.48115088,34030.0,34029.0,2.46439759]
[1625581109007,5.71145088,34030.0,34029.0,1.43132584]
[1625581109128,5.71145088,34030.0,34029.0,1.20948584]
[1625581109679,5.71145088,34030.0,34029.0,0.34823694]
[1625581111347,5.71145088,34030.0,34029.0,0.00389522]
[1625581111647,5.95713088,34030.0,34029.0,0.00389522]
[1625581112008,5.95713088,34030.0,34027.0,0.34430938]
[1625581112136,5.95713088,34030.0,34026.0,1.20508282]
[1625581112139,5.95713088,34030.0,34026.0,0.34431534]
[1625581112309,5.95713088,34030.0,34028.0,0.00389929]
[1625581112551,5.95713088,34030.0,34027.0,0.00389938]
[1625581112910,0.24057544,34028.0,34027.0,0.00389938]
[1625581113150,0.24057544,34028.0,34023.0,1.03298513]
[1625581113151,0.24057544,34028.0,34023.0,0.86065896]
[1625581113631,0.24057544,34028.0,34024.0,0.86456383]
[1625581113870,0.24057544,34028.0,34025.0,0.00389969]
[1625581114891,0.24057544,34026.0,34025.0,0.00389969]
[1625581115311,0.24057544,34026.0,34025.0,0.3481148]
[1625581116273,0.45612544,34026.0,34025.0,0.3481148]
[1625581116512,0.45612544,34026.0,34025.0,0.00389969]
[1625581118379,0.45612544,34026.0,34025.0,0.3480806]
[1625581118497,0.24057544,34026.0,34025.0,0.3480806]
[1625581119099,0.24057544,34026.0,34025.0,1.20835595]
[1625581119339,0.24057544,34026.0,34025.0,0.8642326]
[1625581119579,0.24057544,34026.0,34025.0,0.34803706]
[1625581119818,0.24057544,34026.0,34025.0,0.00389969]
[1625581122280,0.24057544,34026.0,34023.0,0.86036825]
[1625581122281,0.24057544,34026.0,34024.0,0.00389957]
[1625581122766,0.24057544,34026.0,34024.0,0.34806757]
[1625581123007,0.24057544,34025.0,34024.0,0.86431728]
[1625581123127,0.24057544,34025.0,34024.0,0.86041771]
[1625581123370,0.24057544,34025.0,34024.0,0.8643172]
[1625581123493,0.24057544,34025.0,34024.0,0.5201492]
[1625581124274,0.24057544,34025.0,34024.0,1.20846636]
[1625581124754,0.24057544,34025.0,34024.0,2.24122421]
[1625581125594,0.24057544,34028.0,34024.0,2.24122421]
[1625581125717,0.82659912,34037.0,34024.0,2.48966421]
[1625581125954,0.66119031,34038.0,34029.0,0.34422051]
[1625581125955,0.33087319,34038.0,34029.0,0.34422051]
[1625581126075,0.01510031,34036.0,34029.0,0.34422051]
[1625581126435,0.01509986,34037.0,34030.0,0.8644147]
[1625581126675,0.01509931,34039.0,34033.0,1.20650058]
[1625581126917,0.01509883,34040.0,34035.0,0.34440623]
[1625581127034,0.25567427,34040.0,34039.0,0.48115088]
[1625581127394,0.01509883,34040.0,34039.0,0.48115088]
[1625581127515,0.3315794,34043.0,34039.0,0.48504892]
[1625581127635,0.57228268,34044.0,34039.0,0.48504892]
[1625581127754,0.38128268,34044.0,34039.0,0.48504892]
[1625581127875,0.04957544,34044.0,34039.0,0.48504892]
[1625581127994,0.01509768,34043.0,34040.0,0.00389783]
[1625581129016,0.01509768,34043.0,34042.0,0.24057544]
[1625581129017,0.34694764,34043.0,34042.0,0.24057544]
[1625581129975,0.84461677,34043.0,34042.0,0.24057544]
[1625581130216,1.17613508,34043.0,34042.0,0.24057544]
[1625581130515,2.17169752,34043.0,34042.0,0.24057544]
[1625581131054,2.41227296,34043.0,34042.0,0.24057544]
[1625581132316,3.5735969,34043.0,34042.0,0.24057544]
[1625581133944,4.89852544,34043.0,34042.0,0.24057544]
[1625581134064,4.89852544,34043.0,34039.0,0.48115088]
[1625581134184,6.38827986,34043.0,34039.0,0.48115088]
[1625581134305,0.01511076,34042.0,34039.0,0.48115088]
[1625581134422,1.32508148,34040.0,34039.0,0.48115088]
[1625581134542,4.6380336,34040.0,34039.0,0.48115088]
[1625581134905,4.65314442,34040.0,34039.0,0.48115088]
[1625581135143,4.89371986,34040.0,34034.0,0.24057544]
[1625581135385,2.15308086,34035.0,34034.0,0.24057544]
[1625581135505,2.39545086,34035.0,34034.0,0.24057544]
[1625581135744,2.41056166,34035.0,34034.0,0.24057544]
[1625581135864,2.41056166,34035.0,34031.0,0.24057544]
[1625581135865,1.15886973,34032.0,34031.0,0.24057544]
[1625581136348,2.15233297,34032.0,34031.0,0.24057544]
[1625581136590,1.15886973,34032.0,34031.0,0.24057544]
[1625581136829,2.15228037,34032.0,34031.0,0.24057544]
[1625581137068,2.63343125,34032.0,34031.0,0.24057544]
[1625581137192,2.63343125,34032.0,34029.0,0.34565175]
[1625581137310,2.63343125,34032.0,34029.0,0.86412216]
[1625581137551,2.15132627,34030.0,34027.0,0.8641623]
[1625581137793,5.18349078,34028.0,34026.0,0.34566899]
[1625581137913,5.52710078,34028.0,34026.0,0.34566899]
[1625581138034,1.15780345,34027.0,34025.0,0.86418053]
[1625581138334,0.66157835,34027.0,34026.0,0.34582319]
[1625581138514,1.15809411,34027.0,34026.0,0.34582319]
[1625581139055,1.15809411,34027.0,34025.0,0.86426968]
[1625581139056,1.63924499,34027.0,34025.0,0.86426968]
[1625581139175,0.82736157,34026.0,34025.0,0.86426968]
[1625581139474,0.82736157,34026.0,34024.0,0.34578549]
[1625581139475,1.15795932,34026.0,34024.0,0.34578549]
[1625581139720,1.1578026,34025.0,34024.0,0.34578549]
[1625581139955,0.49622474,34025.0,34024.0,0.86446752]
[1625581140376,1.15837644,34025.0,34024.0,0.86446752]
[1625581140616,1.15837644,34025.0,34024.0,0.51868203]
[1625581140857,1.15837644,34025.0,34024.0,0.86455805]
[1625581141038,1.15837644,34025.0,34024.0,0.51868203]
[1625581141158,1.39895188,34025.0,34024.0,0.51868203]
[1625581141398,0.73680018,34025.0,34024.0,0.51868203]
[1625581142243,0.57181863,34025.0,34024.0,1.21040797]
[1625581142543,0.57181863,34025.0,34024.0,2.24782147]
[1625581142544,0.24057544,34025.0,34024.0,2.24782147]
[1625581142782,0.24057544,34025.0,34024.0,1.21040797]
[1625581143023,0.24057544,34025.0,34024.0,2.24802491]
[1625581143143,0.24057544,34025.0,34024.0,2.48860035]
[1625581143982,0.24057544,34025.0,34024.0,3.69907017]
[1625581145485,0.24057544,34025.0,34024.0,3.95926017]
[1625581145607,0.50637544,34025.0,34024.0,3.95926017]
[1625581145728,0.50637544,34025.0,34024.0,2.74879035]
[1625581145846,0.50637544,34025.0,34024.0,2.48860035]
[1625581145965,0.50637544,34025.0,34024.0,1.45098341]
[1625581145966,1.66841509,34025.0,34024.0,1.45098341]
[1625581146146,1.66841509,34025.0,34024.0,0.75925747]
[1625581146386,1.66841509,34025.0,34024.0,0.24057544]
[1625581146387,2.6645462,34025.0,34024.0,0.24057544]
[1625581147588,2.6645462,34025.0,34024.0,0.58653657]
[1625581147828,2.6645462,34025.0,34024.0,0.24057544]
[1625581148068,3.82684746,34025.0,34024.0,0.24057544]
[1625581149148,2.6645462,34025.0,34024.0,0.24057544]
[1625581149388,3.82663955,34025.0,34024.0,0.24057544]
[1625581150350,2.6645462,34025.0,34024.0,0.24057544]
[1625581152091,3.82660211,34025.0,34024.0,0.24057544]
[1625581153050,2.6645462,34025.0,34024.0,0.24057544]
[1625581153290,2.1665055,34025.0,34024.0,0.24057544]
[1625581153530,2.66483225,34025.0,34024.0,0.24057544]
[1625581155036,3.82621282,34025.0,34024.0,0.24057544]
[1625581155271,5.15306191,34025.0,34024.0,0.24057544]
[1625581155754,3.82621282,34025.0,34024.0,0.24057544]
[1625581156534,2.66483225,34025.0,34024.0,0.24057544]
[1625581158216,3.82277656,34025.0,34024.0,0.24057544]
[1625581159359,5.14560246,34025.0,34024.0,0.24057544]
[1625581159958,5.14560246,34025.0,34018.0,0.864431]
[1625581160200,5.14560246,34025.0,34017.0,0.6915448]
[1625581160201,5.14560246,34025.0,34017.0,0.34578558]
[1625581160203,5.1607191,34025.0,34017.0,0.34578558]
[1625581160439,1.15657544,34018.0,34016.0,0.34567711]
[1625581160560,1.39822544,34018.0,34016.0,0.34567711]
[1625581160679,0.33051296,34017.0,34016.0,0.34567711]
[1625581161158,0.81166384,34017.0,34016.0,0.34567711]
[1625581161398,0.81166384,34017.0,34015.0,0.75909111]
[1625581161399,0.97689647,34017.0,34015.0,1.10475982]
[1625581161639,0.82608942,34016.0,34015.0,0.24057544]
[1625581162119,1.15626418,34016.0,34015.0,0.24057544]
[1625581162419,0.49562062,34016.0,34015.0,0.24057544]
[1625581162900,0.49562062,34016.0,34013.0,0.34568298]
[1625581163023,0.82520921,34015.0,34012.0,1.10438468]
[1625581163262,4.68947544,34013.0,34012.0,1.10438468]
[1625581163382,4.68947544,34013.0,34012.0,0.58608926]
[1625581163626,5.84355695,34013.0,34012.0,0.24057544]
[1625581164105,5.18410535,34013.0,34012.0,0.24057544]
[1625581164345,5.51404608,34013.0,34012.0,0.24057544]
[1625581164949,5.84337769,34013.0,34012.0,0.24057544]
[1625581165611,5.18410535,34013.0,34012.0,0.24057544]
[1625581165912,5.84349976,34013.0,34012.0,0.24057544]
[1625581166393,0.73520535,34013.0,34012.0,0.24057544]
[1625581166632,0.24057544,34013.0,34012.0,0.24057544]
[1625581167053,0.24057544,34013.0,34012.0,0.75832627]
[1625581167291,0.24057544,34013.0,34012.0,0.58574096]
[1625581167773,0.24057544,34013.0,34012.0,1.10348664]
[1625581168012,0.24057544,34013.0,34012.0,0.75832112]
[1625581168313,0.24057544,34013.0,34012.0,1.44863794]
[1625581168432,0.24057544,34013.0,34012.0,1.73916794]
[1625581168973,0.24057544,34013.0,34012.0,1.04885112]
[1625581169276,0.24057544,34013.0,34012.0,1.73905979]
[1625581169817,0.24057544,34013.0,34012.0,1.04885112]
[1625581170053,0.24057544,34013.0,34012.0,0.87622278]
[1625581170353,0.24057544,34013.0,34012.0,1.39389432]
[1625581170774,0.24057544,34013.0,34012.0,0.87622278]
[1625581170894,0.24057544,34013.0,34012.0,0.58569278]
[1625581171497,0.24057544,34013.0,34012.0,0.24057544]
[1625581176492,0.5998317,34013.0,34012.0,0.08524815]
[1625581176611,0.5998317,34013.0,34010.0,0.19282359]
[1625581176732,3.5273312,34013.0,34004.0,0.2929]
[1625581176851,3.8751212,34013.0,34004.0,0.2929]
[1625581176975,0.82120021,34007.0,34004.0,0.2929]
[1625581177212,0.32843257,34006.0,34004.0,0.2929]
[1625581177330,0.48115088,34005.0,34004.0,0.2929]
[1625581177810,0.48115088,34005.0,34003.0,0.24057544]
[1625581177931,0.80956087,34005.0,34003.0,0.24057544]
[1625581179135,1.30151147,34005.0,34003.0,0.24057544]
[1625581179375,0.32800058,34004.0,34003.0,0.24057544]
[1625581180884,1.30115677,34005.0,34003.0,0.24057544]
[1625581181243,1.30115677,34005.0,34000.0,0.73]
[1625581181358,0.24057544,34004.0,34000.0,0.73]
[1625581181481,1.38818681,34004.0,34000.0,0.73]
[1625581181719,0.32796942,34002.0,34000.0,0.73]
[1625581181901,1.14764714,34003.0,34000.0,0.73]
[1625581181904,0.98383134,34003.0,34000.0,0.73]
[1625581182019,0.32805639,34003.0,34000.0,0.73]
[1625581182199,0.3279989,34002.0,34000.0,0.73]
[1625581182680,0.32774918,34003.0,34000.0,0.73]
[1625581182923,0.32768291,34002.0,34000.0,0.73]
[1625581183040,0.32768291,34002.0,34001.0,0.0871]
[1625581183160,0.32768291,34002.0,34000.0,0.73]
[1625581183280,0.32768291,34002.0,34001.0,0.24057544]
[1625581183645,0.81906017,34002.0,34001.0,0.24057544]
[1625581183882,0.32768291,34002.0,34001.0,0.24057544]
[1625581184121,0.49134025,34002.0,34001.0,0.24057544]
[1625581184421,1.1463388,34002.0,34001.0,0.24057544]
[1625581184662,0.81867393,34002.0,34001.0,0.24057544]
[1625581185685,0.49134025,34002.0,34001.0,0.24057544]
[1625581186107,1.1447941,34002.0,34001.0,0.24057544]
[1625581186347,0.32663533,34002.0,34001.0,0.24057544]